[Event "11th Arad Open 2018"]
[Site "Arad"]
[Date "2018.08.09"]
[Round "6"]
[White "Vujacic, Borivoje"]
[Black "Coca, Cristi-Iulian"]
[Result "1-0"]
[ECO "B43"]
[WhiteElo "2235"]
[BlackElo "2024"]
[Annotator "NA"]
[PlyCount "103"]
[EventDate "2018.08.05"]
[EventType "swiss"]
[EventCountry "ROU"]
[SourceTitle "playchess.com"]
[Source "ChessBase"]
[SourceQuality "1"]
[TimeControl "40/5400+30:1800+30"]

1. e4 {[%emt 0:00:00]} c5 {[%emt 0:00:00]} 2. Nf3 {[%emt 0:00:12]} e6 {[%emt 0:00:00]} 3. d4 {[%emt 0:00:31]} cxd4 {[%emt 0:00:00]} 4. Nxd4 {[%emt 0:00:06]} a6 {[%emt 0:00:00]} 5. Nc3 {[%emt 0:00:11]} Qc7 {[%emt 0:00:00]} 6. Bd3 {[%emt 0:00:28]} Nf6 {[%emt 0:00:03]} 7. O-O {[%emt 0:01:36]} b5 {[%emt 0:00:39]} 8. a3 Bb7 {[%emt 0:01:19]} 9. Kh1 {[%emt 0:04:01]} d6 {[%emt 0:01:44]} 10. f4 {[%emt 0:00:22]} Nbd7 {[%emt 0:00:27]} 11. Qe2 {[%emt 0:04:52]} Be7 {[%emt 0:03:42]} 12. Bd2 {[%emt 0:00:41]} O-O {[%emt 0:04:34]} 13. Rae1 {[%emt 0:05:30]} Rfe8 {[%emt 0:05:26]} 14. Qf2 {[%emt 0:10:57]} g6 {[%emt 0:06:49]} 15. Qg3 {[%emt 0:07:44]} Bf8 {[%emt 0:03:08]} 16. f5 {[%emt 0:02:10]} Bg7 {[%emt 0:12:30]} 17. fxe6 {[%emt 0:08:09]} fxe6 {[%emt 0:01:05]} 18. Qh3 {[%emt 0:04:57]} Nf8 {[%emt 0:00:40]} 19. Qh4 {[%emt 0:03:14]} N6d7 {[%emt 0:15:58]} 20. Nf3 {[%emt 0:01:31]} Ne5 {[%emt 0:13:29]} 21. Nxe5 {[%emt 0:03:23]} Bxe5 {[%emt 0:01:35]} 22. Rf3 {[%emt 0:00:52]} Nd7 {[%emt 0:16:30]} 23. Ref1 {[%emt 0:05:17]} Nc5 {[%emt 0:00:11]} 24. Bh6 {[%emt 0:03:52]} Bg7 {[%emt 0:03:15]} 25. h3 {[%emt 0:04:46]} Rf8 26. Rxf8+ {[%emt 0:07:36]} Rxf8 {[%emt 0:02:06]} 27. Rxf8+ {[%emt 0:00:51]} Bxf8 {[%emt 0:00:30]} 28. Bxf8 {[%emt 0:00:38]} Kxf8 {[%emt 0:00:56]} 29. Qf6+ {[%emt 0:00:07]} Kg8 {[%emt 0:00:28]} 30. b4 {[%emt 0:05:34]} Nxd3 {[%emt 0:00:29]} 31. cxd3 {[%emt 0:01:08]} Bc8 {[%emt 0:01:12]} 32. Ne2 {[%emt 0:00:31]} Qf7 {[%emt 0:03:16]} 33. Qd8+ {[%emt 0:00:38]} Qf8 {[%emt 0:00:03]} 34. Qc7 {[%emt 0:00:29]} e5 {[%emt 0:01:39]} 35. Ng1 {[%emt 0:00:21]} Be6 {[%emt 0:00:40]} 36. Qc6 {[%emt 0:00:47]} Bc8 {[%emt 0:00:16]} 37. Qc7 {[%emt 0:01:35]} Be6 {[%emt 0:00:06]} 38. Qa7 {[%emt 0:03:06]} Bc8 {[%emt 0:00:06]} 39. d4 {[%emt 0:00:53]} exd4 {[%emt 0:03:22]} 40. Qxd4 {[%emt 0:00:00]} Qe7 {[%emt 0:00:00]} 41. Nf3 {[%emt 0:17:13]} Bb7 {[%emt 0:17:13]} 42. Nd2 {[%emt 0:00:38]} Kf7 {[%emt 0:03:37]} 43. Kg1 {[%emt 0:00:33]} Ke6 {[%emt 0:01:43]} 44. Qb6 {[%emt 0:02:44]} Kf7 {[%emt 0:00:42]} 45. Qa7 {[%emt 0:01:07]} Qc7 {[%emt 0:00:57]} 46. Kf2 {[%emt 0:00:46]} Ke6 {[%emt 0:01:01]} 47. Qd4 {[%emt 0:01:34]} d5 {[%emt 0:01:22]} 48. e5 {[%emt 0:07:18]} h5 {[%emt 0:04:54]} 49. Nf3 {[%emt 0:00:12]} Bc8 {[%emt 0:01:47]} 50. Qf4 {[%emt 0:01:13]} Qc2+ {[%emt 0:02:06]} 51. Kg3 {[%emt 0:00:15]} Qf5 {[%emt 0:00:09]} 52. Nd4+ {[%emt 0:00:08]} 1-0

[Event "11th Arad Open 2018"]
[Site "Arad"]
[Date "2018.08.09"]
[Round "6"]
[White "Dinu, Dumitru-Daniel"]
[Black "Macovei, Andrei"]
[Result "0-1"]
[ECO "A22"]
[WhiteElo "2225"]
[BlackElo "2394"]
[Annotator "NA"]
[PlyCount "64"]
[EventDate "2018.08.05"]
[EventType "swiss"]
[EventCountry "ROU"]
[SourceTitle "playchess.com"]
[Source "ChessBase"]
[SourceQuality "1"]
[TimeControl "40/5400+30:1800+30"]

1. c4 {[%emt 0:02:10]} Nf6 {[%emt 0:01:41]} 2. Nc3 {[%emt 0:00:33]} e5 {[%emt 0:00:15]} 3. g3 {[%emt 0:00:16]} Bb4 {[%emt 0:00:54]} 4. Bg2 {[%emt 0:00:21]} Bxc3 {[%emt 0:02:54]} 5. dxc3 {[%emt 0:01:30]} d6 {[%emt 0:01:45]} 6. Nf3 {[%emt 0:00:11]} O-O {[%emt 0:00:46]} 7. O-O {[%emt 0:00:31]} Nc6 {[%emt 0:02:58]} 8. e4 {[%emt 0:03:24]} Nxe4 {[%emt 0:12:18]} 9. Nxe5 {[%emt 0:05:24]} Nxe5 {[%emt 0:00:21]} 10. Bxe4 {[%emt 0:00:04]} Nxc4 {[%emt 0:00:42]} 11. Bxh7+ {[%emt 0:21:07]} Kxh7 {[%emt 0:00:47]} 12. Qd3+ {[%emt 0:00:01]} Kg8 {[%emt 0:00:13]} 13. Qxc4 {[%emt 0:00:02]} Be6 {[%emt 0:13:22]} 14. Qd4 {[%emt 0:05:40]} Qd7 {[%emt 0:01:49]} 15. Bf4 {[%emt 0:04:43]} Qc6 {[%emt 0:05:09]} 16. f3 {[%emt 0:23:24]} Rfe8 {[%emt 0:12:06]} 17. b3 {[%emt 0:06:13]} a5 {[%emt 0:04:01]} 18. c4 {[%emt 0:05:38]} a4 {[%emt 0:01:14]} 19. Bd2 {[%emt 0:01:14]} axb3 {[%emt 0:02:21]} 20. Bc3 {[%emt 0:00:48]} f6 {[%emt 0:00:01]} 21. axb3 {[%emt 0:00:09]} Rxa1 {[%emt 0:00:38]} 22. Bxa1 {[%emt 0:08:34]} Bh3 {[%emt 0:00:07]} 23. Rc1 {[%emt 0:02:56]} Qxf3 {[%emt 0:00:18]} 24. Qd5+ {[%emt 0:00:01]} Qxd5 {[%emt 0:00:28]} 25. cxd5 {[%emt 0:00:02]} Re2 {[%emt 0:00:14]} 26. Bc3 {[%emt 0:00:35]} Kf8 {[%emt 0:04:32]} 27. Bb4 {[%emt 0:00:38]} Rg2+ {[%emt 0:00:25]} 28. Kh1 {[%emt 0:00:14]} Rb2 {[%emt 0:00:11]} 29. Kg1 {[%emt 0:03:32]} Rxb3 {[%emt 0:00:22]} 30. Be1 {[%emt 0:00:10]} Re3 {[%emt 0:01:34]} 31. Kf2 {[%emt 0:00:08]} Re7 {[%emt 0:00:02]} 32. Kf3 {[%emt 0:00:25]} Bf5 {[%emt 0:00:50]} 0-1

[Event "11th Arad Open 2018"]
[Site "Arad"]
[Date "2018.08.09"]
[Round "6"]
[White "Vachylia, Andrii"]
[Black "Soltanici, Ruslan"]
[Result "0-1"]
[ECO "E15"]
[WhiteElo "2192"]
[BlackElo "2383"]
[Annotator "NA"]
[PlyCount "114"]
[EventDate "2018.08.05"]
[EventType "swiss"]
[EventCountry "ROU"]
[SourceTitle "playchess.com"]
[Source "ChessBase"]
[SourceQuality "1"]
[TimeControl "40/5400+30:1800+30"]

1. d4 {[%emt 0:00:00]} Nf6 {[%emt 0:00:00]} 2. c4 {[%emt 0:00:00]} e6 {[%emt 0:00:22]} 3. Nf3 {[%emt 0:00:00]} b6 {[%emt 0:00:26]} 4. g3 {[%emt 0:00:00]} Ba6 {[%emt 0:00:56]} 5. Qc2 {[%emt 0:00:01]} Bb7 {[%emt 0:04:51]} 6. Bg2 {[%emt 0:00:19]} c5 {[%emt 0:00:20]} 7. d5 {[%emt 0:00:05]} exd5 {[%emt 0:01:05]} 8. cxd5 {[%emt 0:00:04]} Nxd5 {[%emt 0:04:00]} 9. O-O {[%emt 0:00:10]} Be7 {[%emt 0:00:36]} 10. Rd1 {[%emt 0:00:10]} Nc6 {[%emt 0:01:32]} 11. Qf5 {[%emt 0:01:09]} Nf6 {[%emt 0:05:25]} 12. e4 {[%emt 0:00:08]} g6 {[%emt 0:06:19]} 13. Qf4 {[%emt 0:00:26]} O-O {[%emt 0:09:07]} 14. e5 {[%emt 0:00:04]} Nh5 {[%emt 0:00:37]} 15. Qg4 {[%emt 0:00:09]} d5 {[%emt 0:15:15]} 16. Nc3 {[%emt 0:00:46]} d4 {[%emt 0:02:59]} 17. Bh6 {[%emt 0:00:09]} Qc8 {[%emt 0:00:17]} 18. Qxc8 {[%emt 0:06:56]} Rfxc8 {[%emt 0:01:59]} 19. Nd5 {[%emt 0:00:15]} Bf8 {[%emt 0:04:30]} 20. Bg5 {[%emt 0:00:59]} h6 {[%emt 0:10:46]} 21. g4 {[%emt 0:09:00]} Nd8 {[%emt 0:02:16]} 22. Bxh6 {[%emt 0:15:43]} Bxd5 {[%emt 0:02:24]} 23. Bxf8 {[%emt 0:00:05]} Nf4 {[%emt 0:02:53]} 24. Bh6 {[%emt 0:00:06]} Nde6 {[%emt 0:00:36]} 25. Ne1 {[%emt 0:09:51]} Nxg2 {[%emt 0:05:11]} 26. Nxg2 {[%emt 0:00:32]} Bf3 {[%emt 0:00:26]} 27. Rd3 {[%emt 0:00:12]} Bxg4 {[%emt 0:00:23]} 28. Rg3 {[%emt 0:00:53]} Bh5 {[%emt 0:04:32]} 29. Nf4 {[%emt 0:02:30]} Nxf4 {[%emt 0:04:52]} 30. Bxf4 {[%emt 0:00:05]} c4 {[%emt 0:00:02]} 31. Bd2 {[%emt 0:03:30]} Rc5 {[%emt 0:00:37]} 32. Rc1 {[%emt 0:01:58]} Rac8 {[%emt 0:01:53]} 33. f4 {[%emt 0:00:48]} Rb5 {[%emt 0:02:23]} 34. b3 {[%emt 0:00:21]} c3 {[%emt 0:00:25]} 35. Rd3 {[%emt 0:20:43]} Bg4 {[%emt 0:01:01]} 36. Be1 {[%emt 0:05:25]} Rd5 {[%emt 0:00:24]} 37. Kf1 {[%emt 0:01:05]} Bf5 {[%emt 0:01:03]} 38. Rdd1 {[%emt 0:00:05]} Bg4 {[%emt 0:01:04]} 39. Rd3 {[%emt 0:01:32]} Bf5 {[%emt 0:00:40]} 40. Rdd1 {[%emt 0:00:00]} a5 {[%emt 0:00:00]} 41. Kf2 {[%emt 0:16:54]} Rdd8 {[%emt 0:22:34]} 42. a3 {[%emt 0:02:14]} Bg4 {[%emt 0:06:07]} 43. Rd3 {[%emt 0:00:06]} b5 {[%emt 0:00:36]} 44. b4 {[%emt 0:00:14]} axb4 {[%emt 0:00:41]} 45. axb4 {[%emt 0:00:03]} Ra8 {[%emt 0:02:01]} 46. Kg1 {[%emt 0:01:58]} Bf5 {[%emt 0:00:22]} 47. Rdd1 {[%emt 0:00:11]} Bg4 {[%emt 0:00:57]} 48. Rd3 {[%emt 0:00:05]} Be2 {[%emt 0:00:21]} 49. Rg3 {[%emt 0:00:05]} d3 {[%emt 0:04:00]} 50. Bxc3 {[%emt 0:00:13]} Rac8 {[%emt 0:01:02]} 51. Bd2 {[%emt 0:01:44]} Rxc1+ {[%emt 0:00:02]} 52. Bxc1 {[%emt 0:00:03]} d2 {[%emt 0:00:11]} 53. Bxd2 {[%emt 0:00:07]} Rxd2 {[%emt 0:00:01]} 54. f5 {[%emt 0:00:05]} Bd3 {[%emt 0:00:36]} 55. f6 {[%emt 0:03:54]} Bc4 {[%emt 0:00:41]} 56. h4 {[%emt 0:00:05]} Re2 {[%emt 0:00:46]} 57. Rg5 {[%emt 0:00:11]} Kf8 {[%emt 0:00:17]} 0-1

[Event "11th Arad Open 2018"]
[Site "Arad"]
[Date "2018.08.09"]
[Round "6"]
[White "Ghimpu, Samuel-Timotei"]
[Black "Peptan, Corina-Isabela"]
[Result "1/2-1/2"]
[ECO "A06"]
[WhiteElo "2184"]
[BlackElo "2380"]
[Annotator "NA"]
[PlyCount "171"]
[EventDate "2018.08.05"]
[EventType "swiss"]
[EventCountry "ROU"]
[SourceTitle "playchess.com"]
[Source "ChessBase"]
[SourceQuality "1"]
[TimeControl "40/5400+30:1800+30"]

1. Nf3 {[%emt 0:00:07]} d5 {[%emt 0:00:00]} 2. g3 {[%emt 0:00:15]} c6 {[%emt 0:00:01]} 3. Bg2 {[%emt 0:00:12]} Nf6 {[%emt 0:00:04]} 4. O-O {[%emt 0:00:22]} Bf5 {[%emt 0:01:40]} 5. c4 {[%emt 0:06:20]} e6 {[%emt 0:01:01]} 6. d4 {[%emt 0:01:44]} Nbd7 {[%emt 0:01:27]} 7. Qb3 {[%emt 0:03:48]} Qb6 {[%emt 0:05:25]} 8. c5 {[%emt 0:04:14]} Qa6 {[%emt 0:02:17]} 9. Nc3 {[%emt 0:09:05]} b6 {[%emt 0:01:01]} 10. cxb6 {[%emt 0:01:42]} axb6 {[%emt 0:00:18]} 11. Nh4 {[%emt 0:00:15]} b5 {[%emt 0:02:32]} 12. Nxf5 {[%emt 0:27:19]} exf5 {[%emt 0:00:02]} 13. Qc2 {[%emt 0:00:52]} b4 {[%emt 0:03:39]} 14. Nd1 {[%emt 0:00:21]} g6 {[%emt 0:00:56]} 15. b3 {[%emt 0:02:06]} Bg7 {[%emt 0:03:09]} 16. Bf4 {[%emt 0:04:11]} O-O {[%emt 0:01:37]} 17. Nb2 {[%emt 0:12:25]} Ne4 {[%emt 0:05:51]} 18. Bxe4 {[%emt 0:00:27]} fxe4 {[%emt 0:00:43]} 19. Be3 {[%emt 0:05:15]} Rfc8 {[%emt 0:28:12]} 20. Rfd1 {[%emt 0:03:15]} Nb6 {[%emt 0:07:21]} 21. Bf4 {[%emt 0:10:52]} Bf8 {[%emt 0:00:26]} 22. Be3 {[%emt 0:00:23]} Qb7 {[%emt 0:08:45]} 23. Rdc1 {[%emt 0:02:02]} Qe7 {[%emt 0:00:28]} 24. Qd2 {[%emt 0:00:57]} Qf6 {[%emt 0:04:06]} 25. Rc2 {[%emt 0:01:17]} Ra6 {[%emt 0:01:55]} 26. Bg5 {[%emt 0:00:56]} Qe6 {[%emt 0:01:13]} 27. Nd1 {[%emt 0:01:14]} Na8 {[%emt 0:06:45]} 28. Bf4 {[%emt 0:00:32]} Nc7 {[%emt 0:00:54]} 29. Bxc7 {[%emt 0:01:14]} Rxc7 {[%emt 0:00:02]} 30. Rac1 {[%emt 0:00:43]} h5 {[%emt 0:01:58]} 31. e3 {[%emt 0:00:24]} Qc8 {[%emt 0:02:06]} 32. Qe2 {[%emt 0:00:26]} Qa8 {[%emt 0:00:31]} 33. Kg2 {[%emt 0:00:34]} Rca7 {[%emt 0:00:20]} 34. Nb2 {[%emt 0:00:17]} Rxa2 {[%emt 0:02:07]} 35. Na4 {[%emt 0:00:29]} Rxc2 {[%emt 0:00:47]} 36. Qxc2 {[%emt 0:00:02]} Ra6 {[%emt 0:00:18]} 37. Qe2 {[%emt 0:01:21]} Be7 {[%emt 0:01:18]} 38. h4 {[%emt 0:00:26]} Kg7 {[%emt 0:00:09]} 39. Rc2 {[%emt 0:00:32]} Ra7 {[%emt 0:04:04]} 40. Qd1 {[%emt 0:00:00]} Qc8 {[%emt 0:00:00]} 41. Kh2 {[%emt 0:23:37]} Qa6 {[%emt 0:26:49]} 42. Kg1 {[%emt 0:03:06]} Rd7 {[%emt 0:01:31]} 43. Qf1 {[%emt 0:00:58]} Qb7 {[%emt 0:00:18]} 44. Nc5 {[%emt 0:02:13]} Bxc5 {[%emt 0:00:02]} 45. Rxc5 {[%emt 0:00:09]} Qb6 {[%emt 0:00:11]} 46. Qc1 {[%emt 0:00:38]} Rc7 {[%emt 0:01:23]} 47. Qd2 {[%emt 0:00:19]} Ra7 {[%emt 0:00:49]} 48. Qc1 {[%emt 0:02:32]} Ra6 {[%emt 0:02:16]} 49. Kg2 {[%emt 0:00:59]} Qb7 {[%emt 0:00:07]} 50. Kh2 {[%emt 0:00:48]} Qa8 {[%emt 0:00:38]} 51. Qd2 {[%emt 0:00:32]} Ra1 {[%emt 0:03:36]} 52. Rc1 {[%emt 0:00:16]} Rxc1 {[%emt 0:00:16]} 53. Qxc1 {[%emt 0:00:01]} Qa2 {[%emt 0:00:01]} 54. Kg2 Qxb3 {[%emt 0:00:08]} 55. Qxc6 {[%emt 0:00:49]} Qc4 {[%emt 0:00:20]} 56. Qd6 {[%emt 0:00:19]} Qb5 {[%emt 0:00:15]} 57. Qe5+ {[%emt 0:01:27]} Kg8 {[%emt 0:00:01]} 58. g4 {[%emt 0:00:27]} Qe2 {[%emt 0:04:08]} 59. gxh5 {[%emt 0:00:21]} Qg4+ {[%emt 0:00:14]} 60. Kf1 {[%emt 0:00:11]} gxh5 {[%emt 0:00:34]} 61. Qe8+ {[%emt 0:01:15]} Kg7 {[%emt 0:00:01]} 62. Qe5+ {[%emt 0:00:10]} Kg6 {[%emt 0:01:11]} 63. Qxd5 {[%emt 0:00:25]} Qxh4 {[%emt 0:00:18]} 64. Qd6+ {[%emt 0:00:14]} Kg7 {[%emt 0:00:25]} 65. Qxb4 {[%emt 0:00:29]} Qh1+ {[%emt 0:00:01]} 66. Ke2 {[%emt 0:00:06]} h4 {[%emt 0:00:06]} 67. Qe7 {[%emt 0:00:43]} Qf3+ {[%emt 0:00:04]} 68. Kf1 {[%emt 0:00:05]} Qg4 {[%emt 0:01:10]} 69. Qe5+ {[%emt 0:00:32]} Kg6 {[%emt 0:00:10]} 70. Qd6+ {[%emt 0:00:39]} f6 {[%emt 0:00:11]} 71. Qd5 {[%emt 0:01:38]} Qf3 {[%emt 0:02:07]} 72. Qg8+ {[%emt 0:00:18]} Kh5 {[%emt 0:00:02]} 73. Kg1 {[%emt 0:00:19]} f5 {[%emt 0:00:42]} 74. d5 {[%emt 0:00:31]} Qd1+ {[%emt 0:00:46]} 75. Kg2 {[%emt 0:00:04]} Qf3+ {[%emt 0:00:27]} 76. Kg1 {[%emt 0:00:03]} Qd1+ {[%emt 0:00:30]} 77. Kg2 {[%emt 0:00:45]} Qf3+ {[%emt 0:00:13]} 78. Kg1 {[%emt 0:00:07]} Kh6 {[%emt 0:00:28]} 79. Qh8+ {[%emt 0:00:53]} Kg5 {[%emt 0:00:07]} 80. Qg7+ {[%emt 0:00:08]} Kh5 {[%emt 0:00:04]} 81. Qg8 {[%emt 0:00:56]} Qd1+ {[%emt 0:00:40]} 82. Kg2 {[%emt 0:00:12]} Qf3+ {[%emt 0:01:35]} 83. Kg1 {[%emt 0:00:01]} Kh6 {[%emt 0:00:34]} 84. Qh8+ {[%emt 0:00:22]} Kg5 {[%emt 0:00:16]} 85. Qg7+ {[%emt 0:00:05]} Kh5 {[%emt 0:00:06]} 86. Qg8 {[%emt 0:00:04]} 1/2-1/2

[Event "11th Arad Open 2018"]
[Site "Arad"]
[Date "2018.08.09"]
[Round "6"]
[White "Daianu, Cristian-Clement"]
[Black "Farkas, Gabor"]
[Result "0-1"]
[ECO "C50"]
[WhiteElo "2166"]
[BlackElo "2366"]
[Annotator "NA"]
[PlyCount "84"]
[EventDate "2018.08.05"]
[EventType "swiss"]
[EventCountry "ROU"]
[SourceTitle "playchess.com"]
[Source "ChessBase"]
[SourceQuality "1"]
[TimeControl "40/5400+30:1800+30"]

1. e4 {[%emt 0:00:00]} e5 {[%emt 0:00:00]} 2. Nf3 {[%emt 0:00:00]} Nc6 {[%emt 0:00:00]} 3. Bc4 {[%emt 0:00:00]} Bc5 {[%emt 0:00:00]} 4. O-O {[%emt 0:02:02]} Nf6 {[%emt 0:00:24]} 5. d3 {[%emt 0:04:25]} O-O {[%emt 0:03:46]} 6. c3 {[%emt 0:01:03]} d5 {[%emt 0:05:40]} 7. exd5 {[%emt 0:00:41]} Nxd5 {[%emt 0:00:08]} 8. h3 {[%emt 0:04:47]} Nb6 {[%emt 0:08:02]} 9. Bb3 {[%emt 0:07:46]} Bf5 {[%emt 0:01:08]} 10. Bc2 {[%emt 0:21:46]} a5 {[%emt 0:05:24]} 11. Qe2 {[%emt 0:12:04]} Re8 {[%emt 0:04:43]} 12. Nbd2 {[%emt 0:00:35]} h6 {[%emt 0:01:45]} 13. Ne4 {[%emt 0:01:28]} Bf8 {[%emt 0:00:45]} 14. a4 {[%emt 0:08:04]} Nd5 {[%emt 0:03:24]} 15. Re1 {[%emt 0:01:43]} Bg6 {[%emt 0:05:37]} 16. Bb3 {[%emt 0:08:21]} Kh8 {[%emt 0:00:31]} 17. Ng3 {[%emt 0:08:40]} Nb6 {[%emt 0:14:42]} 18. Rd1 {[%emt 0:05:42]} f5 {[%emt 0:02:57]} 19. Qf1 {[%emt 0:03:04]} Qf6 {[%emt 0:01:30]} 20. d4 {[%emt 0:03:54]} e4 {[%emt 0:03:14]} 21. Ne5 {[%emt 0:00:11]} Nxe5 {[%emt 0:02:23]} 22. dxe5 {[%emt 0:00:02]} Qxe5 {[%emt 0:00:54]} 23. Ne2 {[%emt 0:00:23]} Qf6 {[%emt 0:02:52]} 24. Be3 {[%emt 0:02:14]} c5 {[%emt 0:07:22]} 25. Nf4 {[%emt 0:00:37]} Re5 {[%emt 0:04:06]} 26. Qb5 {[%emt 0:01:17]} Be8 {[%emt 0:00:18]} 27. Qe2 {[%emt 0:01:29]} g5 {[%emt 0:00:22]} 28. Nd5 {[%emt 0:00:22]} Nxd5 {[%emt 0:00:23]} 29. Rxd5 {[%emt 0:00:05]} Bd6 {[%emt 0:09:42]} 30. Rad1 {[%emt 0:00:34]} Rxd5 {[%emt 0:01:01]} 31. Rxd5 {[%emt 0:00:04]} Bc6 {[%emt 0:00:32]} 32. Bxg5 {[%emt 0:02:02]} hxg5 {[%emt 0:05:30]} 33. Qh5+ {[%emt 0:00:04]} Kg7 {[%emt 0:00:07]} 34. Rxd6 {[%emt 0:00:04]} Qxd6 {[%emt 0:00:04]} 35. Qxg5+ {[%emt 0:00:09]} Kh7 {[%emt 0:00:49]} 36. Qh4+ {[%emt 0:01:31]} Kg6 {[%emt 0:00:58]} 37. g4 {[%emt 0:00:18]} fxg4 {[%emt 0:01:27]} 38. Qxg4+ {[%emt 0:00:49]} Kh7 {[%emt 0:00:56]} 39. Be6 {[%emt 0:00:11]} Qe7 {[%emt 0:03:27]} 40. Bf5+ {[%emt 0:00:00]} Kh8 {[%emt 0:00:00]} 41. Qh5+ {[%emt 0:13:55]} Kg8 {[%emt 0:16:23]} 42. Kf1 {[%emt 0:06:56]} Re8 {[%emt 0:01:25]} 0-1

[Event "11th Arad Open 2018"]
[Site "Arad"]
[Date "2018.08.09"]
[Round "6"]
[White "Ursan, Petru-Sebastian"]
[Black "Dobre, Claudiu-Cristian"]
[Result "1/2-1/2"]
[ECO "A15"]
[WhiteElo "2147"]
[BlackElo "2356"]
[Annotator "NA"]
[PlyCount "51"]
[EventDate "2018.08.05"]
[EventType "swiss"]
[EventCountry "ROU"]
[SourceTitle "playchess.com"]
[Source "ChessBase"]
[SourceQuality "1"]
[TimeControl "40/5400+30:1800+30"]

1. c4 {[%emt 0:00:00]} Nf6 {[%emt 0:00:00]} 2. Nf3 {[%emt 0:00:32]} c6 {[%emt 0:00:00]} 3. g3 {[%emt 0:00:14]} d5 {[%emt 0:00:00]} 4. Bg2 {[%emt 0:00:19]} Bf5 {[%emt 0:00:21]} 5. cxd5 {[%emt 0:00:40]} cxd5 {[%emt 0:01:42]} 6. Qb3 {[%emt 0:00:20]} Qd7 {[%emt 0:16:30]} 7. O-O {[%emt 0:09:33]} Nc6 {[%emt 0:00:59]} 8. d4 {[%emt 0:00:47]} e6 {[%emt 0:06:19]} 9. Bf4 {[%emt 0:12:16]} Be7 {[%emt 0:04:38]} 10. Nc3 {[%emt 0:00:25]} h6 {[%emt 0:00:24]} 11. Ne5 {[%emt 0:02:42]} Qc8 {[%emt 0:02:13]} 12. Rfc1 {[%emt 0:04:26]} Nxd4 {[%emt 0:12:39]} 13. Qa4+ {[%emt 0:00:21]} Nc6 {[%emt 0:00:05]} 14. e4 {[%emt 0:00:32]} dxe4 {[%emt 0:04:58]} 15. Nxe4 {[%emt 0:00:40]} Bxe4 {[%emt 0:03:13]} 16. Bxe4 {[%emt 0:00:09]} Nxe4 {[%emt 0:00:05]} 17. Qxe4 {[%emt 0:01:21]} O-O {[%emt 0:01:00]} 18. Nxc6 {[%emt 0:00:20]} bxc6 {[%emt 0:00:06]} 19. Rxc6 Qb7 {[%emt 0:12:04]} 20. b3 {[%emt 0:03:43]} Bf6 {[%emt 0:08:08]} 21. Rac1 {[%emt 0:04:09]} Rfe8 {[%emt 0:12:19]} 22. R1c4 {[%emt 0:10:50]} Qb5 {[%emt 0:11:35]} 23. R4c5 {[%emt 0:00:50]} Qb7 {[%emt 0:00:05]} 24. Rc4 {[%emt 0:07:10]} Qb5 {[%emt 0:00:07]} 25. R4c5 {[%emt 0:04:51]} Qb7 {[%emt 0:00:04]} 26. Rc4 {[%emt 0:00:59]} 1/2-1/2

[Event "11th Arad Open 2018"]
[Site "Arad"]
[Date "2018.08.09"]
[Round "6"]
[White "Geher, Koppany"]
[Black "Posedaru, Bogdan"]
[Result "1/2-1/2"]
[ECO "B32"]
[WhiteElo "2137"]
[BlackElo "2326"]
[Annotator "NA"]
[PlyCount "61"]
[EventDate "2018.08.05"]
[EventType "swiss"]
[EventCountry "ROU"]
[SourceTitle "playchess.com"]
[Source "ChessBase"]
[SourceQuality "1"]
[TimeControl "40/5400+30:1800+30"]

1. e4 {[%emt 0:00:00]} c5 {[%emt 0:00:00]} 2. Nf3 {[%emt 0:00:00]} Nc6 {[%emt 0:00:00]} 3. d4 {[%emt 0:00:00]} cxd4 {[%emt 0:00:00]} 4. Nxd4 {[%emt 0:00:00]} e5 {[%emt 0:00:00]} 5. Nb5 {[%emt 0:00:15]} d6 {[%emt 0:00:00]} 6. N1c3 {[%emt 0:00:43]} a6 {[%emt 0:00:00]} 7. Na3 {[%emt 0:00:07]} Be7 {[%emt 0:00:00]} 8. Be3 {[%emt 0:02:42]} b5 {[%emt 0:09:05]} 9. Nd5 {[%emt 0:00:11]} Rb8 {[%emt 0:00:04]} 10. c4 {[%emt 0:04:50]} b4 {[%emt 0:00:06]} 11. Nc2 {[%emt 0:00:06]} Nf6 {[%emt 0:00:10]} 12. Nxf6+ {[%emt 0:14:20]} Bxf6 {[%emt 0:00:27]} 13. b3 {[%emt 0:02:47]} O-O {[%emt 0:00:11]} 14. g3 {[%emt 0:00:15]} Bg5 {[%emt 0:00:51]} 15. Bg2 {[%emt 0:01:33]} Bxe3 {[%emt 0:03:43]} 16. Nxe3 {[%emt 0:00:17]} Nd4 {[%emt 0:08:25]} 17. O-O {[%emt 0:01:23]} Qb6 {[%emt 0:03:23]} 18. Kh1 {[%emt 0:03:18]} Bb7 {[%emt 0:03:09]} 19. Nc2 {[%emt 0:04:37]} Ne6 {[%emt 0:04:07]} 20. Qd2 {[%emt 0:05:59]} a5 {[%emt 0:00:26]} 21. Rad1 {[%emt 0:07:36]} Rfd8 {[%emt 0:04:07]} 22. f4 {[%emt 0:01:55]} Nc5 {[%emt 0:08:46]} 23. Qe3 {[%emt 0:13:34]} Bc6 {[%emt 0:06:30]} 24. Rd2 {[%emt 0:04:06]} Nxe4 {[%emt 0:11:30]} 25. Bxe4 {[%emt 0:06:12]} Qxe3 {[%emt 0:00:04]} 26. Nxe3 {[%emt 0:00:04]} Bxe4+ {[%emt 0:00:04]} 27. Kg1 {[%emt 0:00:01]} Kf8 {[%emt 0:00:13]} 28. Rfd1 {[%emt 0:02:55]} Bf3 {[%emt 0:00:31]} 29. Rf1 {[%emt 0:00:29]} Be4 {[%emt 0:01:10]} 30. Rfd1 {[%emt 0:00:05]} Bf3 {[%emt 0:02:33]} 31. Rf1 {[%emt 0:00:02]} 1/2-1/2